bitfinex-derivatives/quotes_SOLF0:USTF0_20250328
["timestamp","ask_amount","ask_price","bid_price","bid_amount"]
[1743196769042,7.84288514,128.42,128.39,0.0533676]
[1743196769235,7.84288514,128.42,128.4,29.14]
[1743196771343,7.84288514,128.42,128.4,36.9334]
[1743196771543,7.84288514,128.42,128.4,29.14]
[1743196773147,0.05038514,128.42,128.4,29.14]
[1743196773854,7.84258514,128.42,128.4,36.9331]
[1743196774148,0.05038514,128.42,128.4,29.14]
[1743196774550,7.7928,128.41,128.4,29.14]
[1743196774845,0.05038514,128.42,128.4,29.14]
[1743196775347,7.84308514,128.42,128.4,29.14]
[1743196776545,7.84308514,128.42,128.39,7.8471676]
[1743196776546,7.793,128.41,128.39,7.8471676]
[1743196776748,7.793,128.41,128.39,36.9871676]
[1743196777050,0.05038514,128.42,128.39,36.9871676]
[1743196777238,7.84298514,128.42,128.39,36.9871676]
[1743196777641,0.05038514,128.42,128.39,36.9871676]
[1743196777849,7.7932,128.41,128.39,36.9871676]
[1743196778248,7.7934,128.41,128.39,29.1933676]
[1743196778448,0.05038514,128.42,128.39,29.1933676]
[1743196779245,7.7934,128.4,128.39,0.0533676]
[1743196787755,7.7931,128.41,128.39,0.0533676]
[1743196787956,0.05038514,128.42,128.39,0.0533676]
[1743196788357,7.7934,128.4,128.39,0.0533676]
[1743196790258,12.49131734,128.4,128.39,0.0533676]
[1743196791157,7.7934,128.4,128.39,0.0533676]
[1743196791358,12.49700604,128.4,128.39,0.0533676]
[1743196791864,12.49694252,128.4,128.39,0.0533676]
[1743196793766,7.7934,128.4,128.39,0.0533676]
[1743196793959,12.50635711,128.4,128.39,0.0533676]
[1743196794360,4.71295711,128.4,128.39,7.8473676]
[1743196794969,7.84288514,128.42,128.39,7.8473676]
[1743196795268,4.71891411,128.41,128.4,29.14]
[1743196795764,4.71891411,128.41,128.4,36.9334]
[1743196798169,0.05038514,128.42,128.41,7.7928]
[1743196798373,0.05038514,128.42,128.41,11.7972]
[1743196798970,49.91259281,128.47,128.43,7.7911]
[1743196799271,42.12309281,128.47,128.43,29.12]
[1743196799964,4.0668,128.5,128.43,29.12]
[1743196800167,0.0525694,128.46,128.45,7.7903]
[1743196800367,42.12309281,128.51,128.43,29.12]
[1743196800568,42.12309281,128.51,128.44,286.14]
[1743196800873,42.12309281,128.51,128.49,7.7876]
[1743196801063,42.12309281,128.51,128.49,36.9076]
[1743196801259,42.12309281,128.51,128.49,29.12]
[1743196801564,42.17958896,128.51,128.49,29.17533575]
[1743196801771,49.96648896,128.51,128.49,29.17533575]
[1743196802165,42.17958896,128.51,128.49,36.96293575]
[1743196802564,0.05649615,128.51,128.49,36.96293575]
[1743196803973,7.84329615,128.51,128.49,29.17533575]
[1743196805166,7.84329615,128.51,128.49,36.96323575]
[1743196805673,7.84329615,128.51,128.49,29.17533575]
[1743196809082,7.7873,128.5,128.49,0.05533575]
[1743196809581,7.7892,128.47,128.45,29.1]
[1743196810383,7.7898,128.46,128.45,29.1]
[1743196814582,7.7904,128.45,128.44,257.07340082]
[1743196816287,7.7904,128.45,128.44,0.05340082]
[1743196820584,12.49443407,128.45,128.44,0.05340082]
[1743196822095,7.7926,128.42,128.39,7.7938]
[1743196822400,4.0516,128.46,128.4,29.1]
[1743196822587,4.70419572,128.45,128.4,29.1]
[1743196822786,4.70419572,128.44,128.4,29.1]
[1743196822986,4.0516,128.46,128.4,29.1]
[1743196823188,4.70394526,128.45,128.4,29.1]
[1743196823392,4.76264785,128.44,128.42,0.04929045]
[1743196823700,7.7916,128.43,128.42,0.04929045]
[1743196824888,12.49294587,128.43,128.42,0.04929045]
[1743196825585,7.7916,128.43,128.42,0.04929045]
[1743196825789,364.0,128.42,128.31,1.3553513]
[1743196825986,364.0,128.42,128.26,4.2189]
[1743196825987,4.70172177,128.41,128.26,4.2189]
[1743196826187,33.80172177,128.4,128.28,29.1]
[1743196826489,20.29012177,128.39,128.28,29.1]
[1743196826696,4.70172177,128.38,128.28,29.1]
[1743196826995,7.7986,128.32,128.28,29.1]
[1743196827387,0.05433528,128.31,128.29,0.05895836]
[1743196827986,7.85323528,128.31,128.29,0.05895836]
[1743196828186,0.05433528,128.31,128.3,29.1]
[1743196828791,7.85373528,128.31,128.3,29.1]
[1743196829496,7.7995,128.3,128.29,0.05895836]
[1743196829690,7.7995,128.3,128.29,29.15895836]
[1743196831797,0.05433528,128.31,128.29,29.15895836]
[1743196833193,7.7995,128.3,128.29,29.15895836]
[1743196835299,7.7995,128.3,128.29,0.05895836]
[1743196857209,0.05433528,128.31,128.29,0.05895836]
[1743196857409,0.05433528,128.31,128.3,29.12]
[1743196860022,0.05433528,128.31,128.3,36.9195]
[1743196861212,0.05433528,128.31,128.3,29.12]
[1743196862524,0.05433528,128.31,128.3,36.9195]
[1743196863122,7.7974,128.34,128.31,7.7987]
[1743196863618,10.5307732,128.39,128.31,257.2]
[1743196863923,10.5307732,128.39,128.31,258.75872496]
[1743196864118,10.5307732,128.39,128.32,3.9904]
[1743196864318,10.5307732,128.39,128.36,7.7955]
[1743196864514,10.5307732,128.39,128.37,29.1]
[1743196864714,10.58263587,128.39,128.37,29.1]
[1743196864920,10.58263587,128.39,128.37,29.15512423]
[1743196865122,0.05186267,128.39,128.37,36.95032423]
[1743196865923,0.05186267,128.39,128.37,29.15512423]
[1743196866624,0.05186267,128.39,128.38,7.7946]
[1743196870020,0.05186267,128.39,128.38,36.8946]
[1743196871525,11.8061,128.45,128.38,29.1]
[1743196871725,29.1,128.5,128.42,7.7917]
[1743196871930,4.70586893,128.49,128.42,36.8917]
[1743196872121,7.7901,128.46,128.42,36.8917]
[1743196872730,0.05085836,128.45,128.43,0.05230302]
[1743196872922,7.84125836,128.45,128.43,0.05230302]
[1743196873118,0.05085836,128.45,128.43,0.05230302]
[1743196873331,0.05085836,128.45,128.43,7.84390302]
[1743196875533,0.05085836,128.45,128.44,7.791]
[1743196887135,0.05085836,128.45,128.44,36.851]
[1743196890140,0.05085836,128.45,128.43,0.05230302]
[1743196890331,0.05085836,128.45,128.44,29.06]
[1743196890533,0.05085836,128.45,128.43,29.11230302]
[1743196890728,7.791,128.44,128.43,29.11230302]
[1743196894439,7.84155836,128.45,128.43,29.11230302]
[1743196894636,0.05085836,128.45,128.43,29.11230302]
[1743196895141,7.791,128.44,128.43,29.11230302]
[1743196896439,7.84155836,128.45,128.43,29.11230302]
[1743196901948,0.05085836,128.45,128.43,29.11230302]
[1743196902642,0.05085836,128.45,128.44,7.791]
[1743196905947,0.05085836,128.45,128.44,264.691]
[1743196908146,5.836e-05,128.45,128.44,264.691]
[1743196915753,4.3388,128.56,128.44,654.97756322]
[1743196915956,4.73515346,128.55,128.45,30.480342]
[1743196916144,4.73515346,128.54,128.51,7.7864]
[1743196916348,4.73515346,128.53,128.51,36.8264]
[1743196916549,7.7847,128.55,128.51,36.8264]
[1743196916751,4.73463771,128.54,128.51,36.8264]
[1743196916953,4.78492914,128.53,128.51,36.88450553]
[1743196917153,0.05029143,128.53,128.51,36.88450553]
[1743196917752,0.05029143,128.53,128.52,7.7861]
[1743196921856,4.77910759,128.53,128.52,7.7861]
[1743196922757,0.05029143,128.53,128.52,7.7861]
[1743196932975,9.143e-05,128.53,128.52,7.7861]
[1743196933385,9.143e-05,128.53,128.52,12.0865]
[1743196934582,9.143e-05,128.53,128.52,25.72227802]
[1743196938578,9.143e-05,128.53,128.52,27.1517519]
[1743196938775,7.781,128.61,128.57,7.7826]
[1743196939082,7.781,128.61,128.58,29.0]
[1743196939982,7.83301063,128.61,128.58,36.83987254]
[1743196941484,0.05201063,128.61,128.58,36.83987254]
[1743196941886,0.05201063,128.61,128.59,7.7818]
[1743196943385,0.05201063,128.61,128.6,7.7813]
[1743196944591,0.05201063,128.61,128.59,7.7816]
[1743196944786,0.05201063,128.61,128.58,29.05747254]
[1743196946589,0.05201063,128.61,128.59,7.7816]
[1743196946784,0.05201063,128.61,128.58,29.05747254]
[1743196947283,0.05201063,128.61,128.59,7.7815]
[1743196948391,0.05201063,128.61,128.58,29.05747254]
[1743196948988,0.05201063,128.61,128.59,7.7819]
[1743196950090,0.05201063,128.61,128.6,7.7813]
[1743196950791,0.05201063,128.61,128.59,7.7816]
[1743196952394,0.05201063,128.61,128.58,29.05747254]
[1743196953200,7.7817,128.6,128.58,29.05747254]
[1743196953397,0.05201063,128.61,128.58,29.05747254]
[1743196954090,0.05201063,128.61,128.58,29.03747254]
[1743196954395,7.7819,128.59,128.58,0.05747254]
[1743196954793,0.05201063,128.61,128.57,256.72]
[1743196954988,7.7825,128.58,128.57,256.72]
[1743196958297,12.50907127,128.58,128.57,256.72]
[1743196962802,12.50907127,128.58,128.56,7.8336334]
[1743196962996,7.7825,128.58,128.56,7.8336334]
[1743196963194,7.83754145,128.58,128.56,7.8336334]
[1743196963797,7.83754145,128.58,128.56,0.0499334]
[1743196964302,4.73595557,128.57,128.56,0.0499334]
[1743196965100,7.83754145,128.58,128.56,0.0499334]
[1743196965601,4.73656031,128.57,128.56,0.0499334]
[1743196967801,12.51966031,128.57,128.56,0.0499334]
[1743196968002,4.73656031,128.57,128.56,0.0499334]
[1743196970102,4.73656031,128.57,128.56,7.8336334]
[1743196970691,0.05504145,128.58,128.56,7.8336334]
[1743196970891,4.741739,128.57,128.56,7.8336334]
[1743196973007,0.05504145,128.58,128.57,7.7831]
[1743196973206,4.79804252,128.58,128.57,7.7831]
[1743196973604,0.05504145,128.58,128.57,7.7831]
[1743196983413,4.145e-05,128.58,128.57,7.7831]
[1743196983810,4.145e-05,128.58,128.57,12.0648]
[1743196985414,4.1782,128.66,128.63,7.7791]
[1743196985616,4.74642918,128.65,128.63,36.7391]
[1743196985815,4.1782,128.66,128.63,36.7391]
[1743196985816,4.74642918,128.64,128.63,36.7391]
[1743196989121,0.04982082,128.65,128.64,7.7789]
[1743196989419,4.79020109,128.65,128.64,7.7789]
[1743196989617,0.04982082,128.65,128.64,7.7789]
[1743196992417,0.04982082,128.65,128.64,69.7789]
[1743196997229,2.082e-05,128.65,128.64,69.7789]
[1743196999429,2.082e-05,128.65,128.64,71.33362636]
[1743197005831,2.082e-05,128.65,128.64,72.7618039]
[1743197007427,2.082e-05,128.65,128.64,71.33362636]
[1743197007634,2.082e-05,128.65,128.64,72.76179075]
[1743197008838,2.082e-05,128.65,128.64,71.33362636]
[1743197019936,2.082e-05,128.65,128.64,327.77362636]
[1743197035552,2.082e-05,128.65,128.64,356.67362636]
[1743197059781,2.082e-05,128.65,128.64,358.10180908]
[1743197060183,3.9796,128.72,128.7,7.7749]
[1743197060382,3.9796,128.72,128.71,28.86]
[1743197060577,8.7275624,128.72,128.71,28.86]
[1743197062077,8.7275624,128.72,128.71,36.6346]
[1743197063487,8.72178674,128.72,128.71,36.6346]
[1743197064191,4.74218674,128.72,128.71,36.6346]
[1743197064784,0.05271306,128.73,128.72,7.774]
[1743197064988,4.79551916,128.73,128.72,7.774]
[1743197066690,4.79245701,128.73,128.72,7.774]
[1743197070785,0.05271306,128.73,128.72,7.774]
[1743197086302,1.306e-05,128.73,128.72,7.774]
[1743197090696,4.1668,128.82,128.72,9.1873992]
[1743197090890,4.1668,128.82,128.71,67.759]
[1743197090891,4.7306166,128.81,128.73,2.9810386]
[1743197091096,4.1668,128.82,128.74,36.09511791]
[1743197091303,4.1668,128.82,128.75,1.55339805]
[1743197091702,4.1668,128.82,128.81,7.7686]
[1743197092004,8.89498194,128.82,128.81,36.5886]
[1743197092302,46.37426591,128.83,128.81,28.82]
[1743197092502,46.37426591,128.83,128.82,7.768]
[1743197092704,51.09887447,128.83,128.82,7.768]
[1743197093106,46.37426591,128.83,128.82,7.768]
[1743197093699,4.2511731,128.83,128.82,7.768]
[1743197094105,4.2511731,128.83,128.81,36.5884]
[1743197095301,4.2511731,128.83,128.82,7.768]
[1743197097204,0.0554731,128.83,128.82,7.768]
[1743197098005,7.31e-05,128.83,128.82,7.768]
[1743197105112,7.31e-05,128.83,128.82,28.8]
[1743197106412,7.31e-05,128.83,128.82,36.568]
[1743197106809,7.31e-05,128.83,128.8,0.04942606]
[1743197107014,7.31e-05,128.83,128.81,28.8]
[1743197107710,3.9405731,128.83,128.81,28.8]
[1743197108017,11.7082731,128.83,128.8,0.04942606]
[1743197108215,15.8846731,128.83,128.8,22.33092606]
[1743197108416,15.8846731,128.83,128.79,28.8]
[1743197108616,15.8846731,128.83,128.79,36.5694]
[1743197108817,7.768,128.82,128.79,36.5694]
[1743197109324,7.768,128.82,128.79,36.61950076]
[1743197109618,8.1169731,128.83,128.79,0.05010076]
[1743197110721,7.7691,128.81,128.79,0.05010076]
[1743197112122,7.7683,128.82,128.79,7.81990076]
[1743197112718,7.7686,128.81,128.79,0.05010076]
[1743197115324,7.7682,128.82,128.79,0.05010076]
[1743197117025,15.8846731,128.83,128.79,7.81950076]
[1743197117336,8.1169731,128.83,128.79,0.05010076]
[1743197117722,8.1169731,128.83,128.8,7.7691]
[1743197117922,8.1169731,128.83,128.81,28.8]
[1743197118626,8.1169731,128.83,128.81,36.5686]
[1743197119224,8.1169731,128.83,128.81,28.8]
[1743197119528,4.1764731,128.83,128.81,28.8]
[1743197119718,7.31e-05,128.83,128.82,7.768]
[1743197132633,7.31e-05,128.83,128.82,263.888]
[1743197134838,7.31e-05,128.83,128.82,292.648]
[1743197138135,7.31e-05,128.83,128.82,263.888]
[1743197138341,7.31e-05,128.83,128.82,292.648]
[1743197142845,7.31e-05,128.83,128.82,284.88]
[1743197145546,4.72376999,128.83,128.82,284.88]
[1743197145851,12.49116999,128.83,128.82,284.88]
[1743197146950,12.49166315,128.83,128.82,284.88]
[1743197151747,4.72426315,128.83,128.82,284.88]
[1743197154550,7.31e-05,128.83,128.82,292.648]
[1743197165383,4.74037832,128.83,128.82,292.648]
[1743197165884,4.74021653,128.83,128.82,292.648]
[1743197169383,4.74021653,128.83,128.82,284.88]
[1743197170285,4.74021653,128.83,128.82,292.648]
[1743197171486,4.74021653,128.83,128.82,256.12]
[1743197173082,12.50761653,128.83,128.82,256.12]
[1743197174573,4.74021653,128.83,128.82,256.12]
[1743197175486,4.74021653,128.83,128.82,263.888]
[1743197175884,4.74021653,128.83,128.82,7.768]
[1743197176180,4.74303959,128.83,128.82,7.768]
[1743197177988,4.74295088,128.83,128.82,7.768]
[1743197181989,4.74534683,128.83,128.82,7.768]
[1743197183890,4.74628533,128.83,128.82,7.768]
[1743197187995,4.74993167,128.83,128.82,7.768]
[1743197189196,3.167e-05,128.83,128.82,7.768]
[1743197189399,406.12309281,128.9,128.8,44.278]
[1743197189691,49.88649281,128.9,128.81,8.3273]
[1743197189897,42.12309281,128.9,128.87,7.7647]
[1743197190398,42.1767094,128.9,128.87,7.82360412]
[1743197191901,49.9399094,128.9,128.87,0.05890412]
[1743197192699,49.9399094,128.9,128.87,7.82380412]
[1743197192700,42.1767094,128.9,128.87,7.82380412]
[1743197192901,0.05361659,128.9,128.87,7.82380412]
[1743197193297,7.81721659,128.9,128.87,0.05890412]
[1743197194502,7.81721659,128.9,128.87,7.82360412]
[1743197196004,0.05361659,128.9,128.88,7.7643]
[1743197200508,0.05361659,128.9,128.87,0.05890412]
[1743197200807,7.81691659,128.9,128.87,0.05890412]
[1743197201206,4.66801446,128.89,128.87,0.05890412]
[1743197201407,4.66801446,128.88,128.87,0.05890412]
[1743197205706,7.7639,128.89,128.87,0.05890412]
[1743197206010,4.66634754,128.88,128.87,0.05890412]
[1743197211909,7.81701659,128.9,128.87,0.05890412]
[1743197212113,4.66493187,128.89,128.87,28.73890412]
[1743197212313,7.81701659,128.9,128.87,28.73890412]
[1743197212515,4.66573047,128.89,128.87,28.73890412]
[1743197212816,7.81701659,128.9,128.87,28.73890412]
[1743197213017,4.66591167,128.89,128.87,28.73890412]
[1743197213313,7.81701659,128.9,128.87,28.73890412]
[1743197213513,4.66557715,128.89,128.87,28.73890412]
[1743197213715,7.81701659,128.9,128.87,28.73890412]
[1743197213909,4.66558302,128.89,128.87,28.73890412]
[1743197214110,7.81701659,128.9,128.87,28.73890412]
[1743197214310,4.6652947,128.89,128.87,28.73890412]
[1743197214510,7.81701659,128.9,128.87,28.73890412]
[1743197214711,4.6652947,128.89,128.87,28.73890412]
[1743197214906,7.81701659,128.9,128.87,28.73890412]
[1743197215106,4.6652947,128.89,128.87,28.73890412]
[1743197215311,7.81701659,128.9,128.87,28.73890412]
[1743197215507,4.6650642,128.89,128.87,36.50390412]
[1743197215711,7.81701659,128.9,128.87,36.50390412]
[1743197215912,4.66509867,128.89,128.87,36.50390412]
[1743197216114,7.81701659,128.9,128.87,36.50390412]
[1743197216413,4.66511383,128.89,128.87,36.50390412]
[1743197216616,7.81701659,128.9,128.87,36.50390412]
[1743197216811,4.6652645,128.89,128.87,36.50390412]
[1743197217016,0.05361659,128.9,128.87,28.73890412]
[1743197217214,4.66554148,128.89,128.87,28.73890412]
[1743197217415,0.05361659,128.9,128.87,28.73890412]
[1743197217616,4.6662402,128.89,128.87,28.73890412]
[1743197217816,0.05361659,128.9,128.87,28.73890412]
[1743197218620,0.05361659,128.9,128.89,7.7638]
[1743197219924,0.05361659,128.9,128.88,7.7641]
[1743197220930,0.05361659,128.9,128.87,90.73890412]
[1743197221828,0.05361659,128.9,128.89,7.7638]
[1743197222028,4.72088495,128.9,128.89,7.7638]
[1743197222328,0.05361659,128.9,128.89,7.7638]
[1743197222921,1.659e-05,128.9,128.89,7.7638]
[1743197233733,4.67406451,128.97,128.95,7.7599]
[1743197234032,4.67406451,128.96,128.95,7.7599]
[1743197234727,8.4886,128.99,128.96,7.7592]
[1743197234926,0.05637957,128.97,128.96,7.7592]
[1743197235132,4.7303859,128.97,128.96,7.7592]
[1743197235829,0.05637957,128.97,128.96,7.7592]
[1743197241136,7.957e-05,128.97,128.96,7.7592]
[1743197243938,7.957e-05,128.97,128.96,292.2992]
[1743197244439,7.957e-05,128.97,128.96,354.2992]
[1743197246337,7.957e-05,128.97,128.96,292.2992]
[1743197246943,7.957e-05,128.97,128.96,284.54]
[1743197250743,7.957e-05,128.97,128.96,292.2996]
[1743197253042,7.957e-05,128.97,128.96,292.2796]
[1743197254146,7.957e-05,128.97,128.96,354.2796]
[1743197254343,7.957e-05,128.97,128.96,292.2796]
[1743197265452,4.66779791,129.02,129.01,7.7562]
[1743197265647,4.66779791,129.02,129.01,28.62]
[1743197265950,4.66779791,129.02,128.99,28.62]
[1743197266143,50.24679281,129.05,128.99,28.62]
[1743197266343,4.66642739,129.04,128.99,36.3774]
[1743197266545,4.71604201,129.03,129.01,0.05163926]
[1743197266748,4.66642739,129.02,129.01,0.05163926]
[1743197267053,4.66642739,129.02,129.01,7.80813926]
[1743197270553,0.04961462,129.03,129.02,7.756]
[1743197270762,4.71690656,129.03,129.02,7.756]
[1743197274369,4.72319509,129.03,129.02,7.756]
[1743197275466,4.72414257,129.03,129.02,7.756]
[1743197276668,0.04961462,129.03,129.02,7.756]
[1743197278461,0.04961462,129.03,129.01,28.65163926]
[1743197278666,0.04961462,129.03,129.01,36.40803926]
[1743197278863,42.12309281,129.08,129.01,28.65163926]
[1743197279064,91.99798563,129.09,129.01,28.65163926]
[1743197279065,4.67621842,129.07,129.01,28.65163926]
[1743197279255,4.67621842,129.06,129.01,28.6]
[1743197279459,7.7518,129.09,129.01,28.6]
[1743197279766,4.67575683,129.08,129.02,7.7555]
[1743197280067,0.02518688,129.06,129.04,0.0567235]
[1743197280268,0.02518688,129.06,129.05,28.6]
[1743197280468,4.70127625,129.06,129.05,28.6]
[1743197284167,4.70127625,129.06,129.02,28.58]
[1743197284475,7.7549,129.04,129.02,28.58]
[1743197284776,4.67608937,129.03,129.02,28.58]
[1743197285072,4.67608937,129.03,129.02,38.54638791]
[1743197286775,12.43148937,129.03,129.02,38.54638791]
[1743197287471,12.42579855,129.03,129.02,38.54638791]
[1743197289168,12.42579855,129.03,129.02,9.96638791]
[1743197289473,12.42579855,129.03,129.01,10.0260508]
[1743197289474,7.756,129.02,129.01,10.0260508]
[1743197289674,12.42581623,129.02,129.01,10.0260508]
[1743197291376,12.42578954,129.02,129.01,10.0260508]
[1743197296988,7.7566,129.01,129.0,9.96638791]
[1743197297190,12.42638954,129.01,129.0,9.96638791]
[1743197299607,7.7572,129.0,128.99,265.83616263]
[1743197299792,12.42698954,129.0,128.99,10.01616263]
[1743197304095,7.7572,129.0,128.99,10.01616263]
[1743197304391,12.42446385,129.0,128.99,10.01616263]
[1743197307302,12.42369569,129.0,128.99,10.01616263]
[1743197307701,12.42369569,129.0,128.99,0.04977472]
[1743197309798,7.7584,128.98,128.97,9.96638791]
[1743197310003,12.42489569,128.98,128.97,9.96638791]
[1743197310903,7.759,128.97,128.96,0.05772599]
[1743197311108,12.42549569,128.97,128.96,0.05772599]
[1743197311904,12.42549569,128.97,128.96,2.599e-05]
[1743197312106,4.66649569,128.97,128.93,265.76638791]
[1743197312401,4.66649569,128.96,128.93,9.96638791]
[1743197312603,7.7608,128.94,128.93,9.96638791]
[1743197312807,12.42729569,128.94,128.93,9.96638791]
[1743197316607,7.81389666,128.95,128.93,9.96638791]
[1743197317207,7.7608,128.94,128.93,9.96638791]
[1743197326706,7.81389666,128.95,128.93,9.96638791]
[1743197326909,7.81389666,128.95,128.94,9.96638791]
[1743197327111,12.45950452,128.95,128.94,9.96638791]
[1743197329307,4.69910452,128.95,128.94,9.96638791]
[1743197331318,12.45930452,128.95,128.94,9.96638791]
[1743197338318,4.69910452,128.95,128.94,9.96638791]
[1743197339319,12.45930452,128.95,128.94,9.96638791]
[1743197341122,4.69910452,128.95,128.94,9.96638791]
[1743197344122,4.71892521,128.95,128.94,9.96638791]
[1743197348029,4.72201224,128.95,128.94,9.96638791]
[1743197351632,4.72201224,128.95,128.93,17.72778791]
[1743197351828,4.66851558,128.94,128.93,17.72778791]
[1743197353930,4.67687645,128.94,128.93,17.72778791]
[1743197357939,4.68096922,128.94,128.93,17.72778791]
[1743197361947,4.68235819,128.94,128.93,17.72778791]
[1743197364255,4.68235819,128.94,128.93,9.96638791]
[1743197364459,4.68235819,128.94,128.92,10.0244221]
[1743197364660,4.68235819,128.93,128.92,10.0244221]
[1743197365659,4.68208719,128.93,128.92,10.0244221]
[1743197367861,4.68210175,128.93,128.92,17.7864221]
[1743197371958,4.68324613,128.93,128.92,17.7864221]
[1743197375662,4.68398867,128.93,128.92,17.7864221]
[1743197377755,0.05349666,128.95,128.93,7.7613]
[1743197377962,4.68416904,128.94,128.93,17.72768791]
[1743197379364,4.68416904,128.94,128.93,9.96638791]
[1743197385765,4.68438656,128.94,128.93,9.96638791]
[1743197387677,4.68421709,128.94,128.93,9.96638791]
[1743197395271,4.68421709,128.94,128.93,17.72778791]
[1743197399687,4.68421709,128.94,128.93,9.96638791]
[1743197403588,4.68421709,128.94,128.93,46.24778791]
[1743197404289,0.05349666,128.95,128.94,7.7608]
[1743197404690,0.05349666,128.95,128.94,17.72718791]
[1743197404991,18.2888732,128.99,128.96,7.7595]
[1743197405192,18.2888732,128.99,128.96,38.48638791]
[1743197405889,10.5307732,128.99,128.96,38.48638791]
[1743197406090,10.5307732,128.99,128.97,9.96638791]
[1743197406290,10.58830594,128.99,128.98,7.7584]
[1743197406486,10.58830594,128.99,128.98,17.72478791]
[1743197407286,0.05753274,128.99,128.98,17.72478791]
[1743197409695,0.05753274,128.99,128.98,79.72478791]
[1743197412501,0.05753274,128.99,128.98,17.72478791]
[1743197413197,9.96638791,129.06,129.01,7.7563]
[1743197413397,9.96638791,129.07,129.02,28.5]
[1743197413791,7.7539,129.06,129.02,46.22218791]
[1743197414300,0.05713047,129.05,129.03,0.05982443]
[1743197415198,0.05713047,129.05,129.03,17.78151234]
[1743197416293,4.58049139,129.04,129.03,17.78151234]
[1743197416701,0.05713047,129.05,129.04,7.7548]
[1743197416900,0.05713047,129.05,129.04,9.96638791]
[1743197417297,0.05713047,129.05,129.04,17.72118791]
[1743197420902,0.05713047,129.05,129.04,9.96638791]
[1743197438916,0.05713047,129.05,129.04,17.72118791]
[1743197440618,0.05713047,129.05,129.04,9.96638791]
[1743197442120,0.05713047,129.05,129.04,17.72118791]
[1743197447721,0.05713047,129.05,129.04,9.96638791]
[1743197448819,7.81133047,129.05,129.04,9.96638791]
[1743197449126,0.05713047,129.05,129.04,38.42638791]
[1743197449322,4.6519564,129.05,129.04,38.42638791]
[1743197451126,4.6519564,129.05,129.04,46.18118791]
[1743197454829,4.6519564,129.05,129.04,38.42638791]
[1743197456031,4.66186726,129.05,129.04,38.42638791]
[1743197457733,4.66186726,129.05,129.04,46.18118791]
[1743197461423,4.67306668,129.05,129.04,46.18118791]
[1743197462632,14.63945459,129.05,128.98,1.34847134]
[1743197462836,9.96638791,129.03,128.95,33.98096312]
[1743197463033,4.61593621,129.02,128.97,9.96638791]
[1743197463339,7.7572,129.0,128.97,9.96638791]
[1743197463532,4.61593621,128.99,128.97,9.96638791]
[1743197463727,4.61593621,128.98,128.97,9.96638791]
[1743197463931,4.61593621,128.98,128.97,10.01688387]
[1743197467548,7.80975606,128.99,128.97,10.01688387]
[1743197467842,7.7584,128.98,128.97,0.05049596]
[1743197468038,12.35650856,128.98,128.97,0.05049596]
[1743197468438,4.59810856,128.98,128.94,255.7]
[1743197468642,9.96638791,128.96,128.94,255.7]
[1743197468943,14.56449647,128.95,128.9,9.96638791]
[1743197469140,4.59810856,128.94,128.9,38.42638791]
[1743197469341,4.59810856,128.93,128.9,38.42638791]
[1743197469542,0.0533965,128.93,128.91,0.05118883]
[1743197469743,7.8149965,128.93,128.91,0.05118883]
[1743197470144,0.0533965,128.93,128.91,0.05118883]
[1743197470441,7.762,128.92,128.91,0.05118883]
[1743197470641,12.34466267,128.92,128.91,0.05118883]
[1743197471035,17.78138441,128.93,128.91,0.05118883]
[1743197471346,4.58375758,128.92,128.91,0.05118883]
[1743197471648,9.96638791,128.92,128.91,0.05118883]
[1743197474639,9.9544965,128.93,128.91,0.05118883]
[1743197474640,19.92088441,128.93,128.91,0.05118883]
[1743197480054,9.9544965,128.93,128.91,0.05118883]
[1743197485767,17.72838791,128.92,128.91,0.05118883]
[1743197485958,9.96638791,128.92,128.85,9.96638791]
[1743197486158,9.96638791,128.9,128.85,9.96638791]
[1743197486359,17.72968791,128.9,128.84,9.96638791]
[1743197486564,9.96638791,128.89,128.84,38.42638791]
[1743197487065,0.05186869,128.88,128.85,0.05865069]
[1743197488266,9.96638791,128.87,128.85,0.05865069]
[1743197488467,9.96638791,128.86,128.85,0.05865069]
[1743197488663,17.73198791,128.86,128.85,0.05865069]
[1743197488863,9.96638791,128.86,128.81,255.96]
[1743197489063,9.96638791,128.84,128.79,9.96638791]
[1743197489255,17.73418791,128.83,128.79,9.96638791]
[1743197490066,7.81702705,128.82,128.8,0.0580581]
[1743197490266,0.04902705,128.82,128.8,0.0580581]
[1743197490565,10.01541496,128.82,128.8,0.0580581]
[1743197491366,9.96638791,128.81,128.8,0.0580581]
[1743197491761,17.73498791,128.81,128.8,0.0580581]
[1743197502073,9.96638791,128.81,128.8,0.0580581]
[1743197502372,0.04902705,128.82,128.8,0.0580581]